Workbook

Sheet NSU
B1: Mari-Ann Lehtinen | E1: 25.4.1998 Mynämäki
B2: SUPERPESIS | E2: Runkosarja | I2: Kärkilyönnit (KL), pesänvälit | Q2: Runkosarja | U2: Ylempi loppusarja | Z2: Alempi loppusarja | AG2: Arvo-ottelut ja mitalit
B3: Vuosi | C3: Sija | D3: Seura | E3: OTT | F3: KUN | G3: LÖI | H3: TOI | I3: KL | J3: 0 > 1 | K3: 1 > 2 | L3: 2 > 3 | M3: 3 > k | N3: KL-% | P3: LÖI | Q3: TOI | R3: L+T | S3: KL | U3: OTT | V3: KUN | W3: LÖI | X3: TOI | Y3: KL | Z3: OTT | AA3: KUN | AB3: LÖI | AC3: TOI | AD3: KL | AE3: IL | AF3: LL | AG3: Halli | AH3: K | AI3: H | AJ3: P
B4: 2012 | C4: 5. | D4: MyVe | F4: suomensarja
B5: 2013 | C5: 3. | D5: MyVe | F5: suomensarja
B6: 2014 | C6: 2. | D6: MyVe | F6: suomensarja
B7: 2015 | C7: 9. | D7: MyVe | F7: ykköspesis
B8: 2016 | C8: 3. | D8: MyVe | F8: ykköspesis
B9: 2017 | C9: 6. | D9: MyVe | F9: ykköspesis
B10: 2017 | C10: 10. | D10: KPK | E10: 3 | F10: 0 | G10: 0 | H10: 0 | I10: 5 | J10: 3 | K10: 1 | L10: 1 | M10: 0 | N10: 41.7 % | O10: 13
B11: 2018 | C11: 1. | D11: MyVe | F11: ykköspesis
B12: 2019 | C12: 10. | D12: MyVe | E12: 24 | F12: 0 | G12: 4 | H12: 6 | I12: 64 | J12: 16 | K12: 31 | L12: 13 | M12: 4 | N12: 45.1 % | O12: 142 | Z12: 3 | AA12: 0 | AB12: 0 | AC12: 1 | AD12: 10
B13: 2020 | C13: 12. | D13: MyVe | E13: 20 | F13: 1 | G13: 2 | H13: 8 | I13: 61 | J13: 16 | K13: 25 | L13: 17 | M13: 3 | N13: 48.0 % | O13: 127
B14: 2021 | C14: 11. | D14: MyVe | E14: 22 | F14: 0 | G14: 3 | H14: 14 | I14: 76 | J14: 9 | K14: 33 | L14: 31 | M14: 3 | N14: 53.9 % | O14: 141 | Z14: 3 | AA14: 0 | AB14: 0 | AC14: 1 | AD14: 5
B15: 2022 | C15: 4. | D15: Pesäkarhut | E15: 14 | F15: 0 | G15: 1 | H15: 3 | I15: 15 | J15: 3 | K15: 5 | L15: 6 | M15: 1 | N15: 42.9 % | O15: 35 | U15: 3 | V15: 0 | W15: 0 | X15: 1 | Y15: 4
B16: 2023 | C16: 2. | D16: MyVe | F16: suomensarja
B17: Yhteensä | E17: =SUM(E4:E16) -> 83 | F17: 1 | G17: 10 | H17: 31 | I17: 221 | J17: 47 | K17: 95 | L17: 68 | M17: 11 | N17: =PRODUCT(I17/O17) -> 48.3 % | O17: =SUM(O4:O16) -> 458 | U17: =SUM(U4:U16) -> 3 | V17: 0 | W17: 0 | X17: 1 | Y17: 4 | Z17: 6 | AA17: 0 | AB17: 0 | AC17: 2 | AD17: 15 | AE17: 0 | AF17: 0 | AG17: 0 | AH17: 0 | AI17: 0 | AJ17: 0
B18: Pesispörssi | D18: =SUM(F17:H17)+((I17-F17-G17)/3)+(E17/3)+(AE17*25)+(AF17*25)+(AG17*10)+(AH17*25)+(AI17*20)+(AJ17*15) -> 139.7
B20: URA SUPERISSA | E20: OTT | F20: KUN | G20: LÖI | H20: TOI | I20: KL | K20: ka/L | L20: ka/T | M20: ka/KL | N20: K - % | P20: ENSIMMÄISET
B21: Runkosarja | E21: =PRODUCT(E17) -> 83 | F21: =PRODUCT(F17) -> 1 | G21: =PRODUCT(G17) -> 10 | H21: =PRODUCT(H17) -> 31 | I21: =PRODUCT(I17) -> 221 | K21: =PRODUCT((F21+G21)/E21) -> 0.13 | L21: =PRODUCT(H21/E21) -> 0.37 | M21: =PRODUCT(I21/E21) -> 2.66 | N21: =PRODUCT(N17) -> 48.3 % | O21: =PRODUCT(O17) -> 458 | P21: Ottelu | R21: 22.05. 2017 KPK - Manse PP 1-2 (1-4, 4-3, 0-0, 0-2) | AC21: 1. ottelu | AE21: 19 v 0 kk 27 pv
B22: Ylempi loppusarja | E22: =PRODUCT(U17) -> 3 | F22: =PRODUCT(V17) -> 0 | G22: =PRODUCT(W17) -> 0 | H22: =PRODUCT(X17) -> 1 | I22: =PRODUCT(Y17) -> 4 | K22: =PRODUCT((F22+G22)/E22) -> 0.00 | L22: =PRODUCT(H22/E22) -> 0.33 | M22: =PRODUCT(I22/E22) -> 1.33 | N22: =PRODUCT(I22/O22) -> 57.1 % | O22: 7 | P22: Lyöty | R22: 16.06. 2019 MyVe - Pesä Ysit 1-0 (7-4, 7-7) | AC22: 14. ottelu | AE22: 21 v 1 kk 22 pv
B23: Alempi loppusarja | E23: =PRODUCT(Z17) -> 6 | F23: =PRODUCT(AA17) -> 0 | G23: 0 | H23: 2 | I23: 15 | K23: =PRODUCT((F23+G23)/E23) -> 0.00 | L23: =PRODUCT(H23/E23) -> 0.33 | M23: =PRODUCT(I23/E23) -> 2.50 | N23: =PRODUCT(I23/O23) -> 53.6 % | O23: 28 | P23: Tuotu | R23: 14.05. 2019 Tahko - MyVe 2-1 (1-3, 2-0, 2-1) | AC23: 5. ottelu | AE23: 21 v 0 kk 20 pv
B24: KAIKKI | E24: =SUM(E21:E23) -> 92 | F24: =SUM(F21:F23) -> 1 | G24: =SUM(G21:G23) -> 10 | H24: =SUM(H21:H23) -> 34 | I24: =SUM(I21:I23) -> 240 | K24: =PRODUCT((F24+G24)/E24) -> 0.12 | L24: =PRODUCT(H24/E24) -> 0.37 | M24: =PRODUCT(I24/E24) -> 2.61 | N24: =PRODUCT(I24/O24) -> 48.7 % | O24: =SUM(O21:O23) -> 493 | P24: Kunnari | R24: 05.08. 2020 Pesäkarhut - MyVe 2-0 (7-2, 4-1) | AC24: 45. ottelu | AE24: 22 v 3 kk 11 pv
B26: Vuoden naislukkari (MYP) 2018
B28: Seurat | D28: MyVe = Mynämäen Vesa (1920), kasvattajaseura
D29: KPK = Kajaanin Pallokerho (1933)
D30: Pesäkarhut (1985)
